bitfinex/quotes_BTCUSD_20240602
["timestamp","ask_amount","ask_price","bid_price","bid_amount"]
[1717338641024,0.001,68308.0,68307.0,0.29769927]
[1717338641256,0.146366,68322.0,68308.0,0.01]
[1717338641492,0.001,68318.0,68309.0,0.30769927]
[1717338641716,0.001,68318.0,68310.0,0.15192136]
[1717338641971,0.001,68318.0,68311.0,0.29769927]
[1717338642194,0.146366,68322.0,68311.0,0.29769927]
[1717338642417,0.146366,68322.0,68312.0,0.15192136]
[1717338642627,0.146366,68322.0,68313.0,0.29769927]
[1717338642829,0.146366,68322.0,68314.0,0.15192136]
[1717338643034,0.002,68318.0,68315.0,0.29769927]
[1717338643247,0.002,68318.0,68316.0,0.15192136]
[1717338643493,0.002,68318.0,68317.0,0.29769927]
[1717338644102,0.003,68318.0,68317.0,0.29769927]
[1717338644540,0.146359,68325.0,68317.0,0.29769927]
[1717338644746,0.146359,68325.0,68318.0,0.15192136]
[1717338644955,0.002,68322.0,68319.0,0.29769927]
[1717338645163,0.01,68323.0,68320.0,0.15192136]
[1717338645373,0.01,68323.0,68321.0,0.29769927]
[1717338645575,0.01,68323.0,68322.0,0.15192136]
[1717338645730,0.01,68323.0,68322.0,0.29769927]
[1717338646962,0.001,68325.0,68322.0,0.29769927]
[1717338647155,0.001,68325.0,68323.0,0.29769927]
[1717338647377,0.146359,68325.0,68324.0,0.15192136]
[1717338647728,0.146359,68325.0,68324.0,0.29769927]
[1717338648107,0.01,68329.0,68324.0,0.29769927]
[1717338648355,0.1224,68331.0,68325.0,0.15192136]
[1717338648586,0.13147795,68340.0,68331.0,0.35]
[1717338648587,0.058589,68340.0,68331.0,0.35]
[1717338648787,0.82191907,68368.0,68354.0,0.3356]
[1717338648788,0.43733372,68362.0,68354.0,0.3356]
[1717338648991,0.156295,68355.0,68354.0,0.3356]
[1717338649190,0.82191907,68368.0,68354.0,0.3356]
[1717338649191,0.01,68359.0,68354.0,0.3356]
[1717338649394,0.14629,68358.0,68355.0,0.15184751]
[1717338649628,0.1324,68360.0,68356.0,0.15184751]
[1717338649825,0.1324,68360.0,68348.0,0.01468019]
[1717338649826,0.1324,68360.0,68357.0,0.15184751]
[1717338650044,0.146282,68361.0,68358.0,0.15184751]
[1717338650045,0.156282,68361.0,68358.0,0.15184751]
[1717338650235,0.278682,68361.0,68359.0,0.15184751]
[1717338650385,0.278682,68361.0,68360.0,0.15184751]
[1717338651021,0.278682,68361.0,68360.0,0.29762542]
[1717338651630,0.278682,68361.0,68360.0,0.30262542]
[1717338652010,0.378682,68361.0,68360.0,0.30462542]
[1717338652207,0.378682,68361.0,68360.0,0.304622]
[1717338652408,0.378682,68361.0,68360.0,0.302622]
[1717338653383,0.378682,68361.0,68360.0,0.304622]
[1717338653803,0.378682,68361.0,68360.0,0.299622]
[1717338654002,0.378682,68361.0,68360.0,0.304622]
[1717338654610,0.378682,68361.0,68360.0,0.299622]
[1717338654780,0.378682,68361.0,68360.0,0.302622]
[1717338655197,0.378682,68361.0,68360.0,0.305622]
[1717338655351,0.378682,68361.0,68360.0,0.297622]
[1717338655558,0.378682,68361.0,68360.0,0.299622]
[1717338655756,0.378682,68361.0,68360.0,0.15384409]
[1717338657036,0.378682,68361.0,68360.0,0.15184409]
[1717338657248,0.391682,68361.0,68360.0,0.15284409]
[1717338657655,0.621482,68361.0,68360.0,0.15284409]
[1717338658221,0.642482,68361.0,68360.0,0.15484409]
[1717338659572,0.742482,68361.0,68360.0,0.15484409]
[1717338659974,0.742482,68361.0,68360.0,0.003]
[1717338659975,0.642482,68361.0,68360.0,0.003]
[1717338660333,0.742482,68361.0,68360.0,0.003]
[1717338660665,1.035046,68361.0,68360.0,0.003]
[1717338661338,1.035046,68361.0,68334.0,0.75153372]
[1717338661339,0.01,68339.0,68338.0,0.02179929]
[1717338661484,0.01,68335.0,68332.0,0.45913301]
[1717338661697,0.2298,68343.0,68332.0,0.45913301]
[1717338661698,0.15634,68334.0,68333.0,0.15188133]
[1717338662116,0.01,68329.0,68328.0,0.02181874]
[1717338662464,0.01,68329.0,68328.0,0.29766901]
[1717338662657,0.01,68329.0,68328.0,0.1518911]
[1717338663230,0.01,68329.0,68328.0,0.1788911]
[1717338663231,0.15835,68329.0,68328.0,0.1788911]
[1717338664039,0.25835,68329.0,68328.0,0.1788911]
[1717338664266,0.25835,68329.0,68328.0,0.1908911]
[1717338664267,0.35935,68329.0,68328.0,0.1908911]
[1717338664606,0.35935,68329.0,68328.0,0.039]
[1717338664808,0.69655,68329.0,68328.0,0.027]
[1717338665328,0.69655,68329.0,68328.0,0.017]
[1717338665735,0.69855,68329.0,68328.0,0.027]
[1717338665936,0.59855,68329.0,68328.0,0.027]
[1717338666107,0.69655,68329.0,68328.0,0.017]
[1717338666310,0.59655,68329.0,68328.0,0.017]
[1717338666556,0.59655,68329.0,68328.0,0.001]
[1717338666557,0.29235,68329.0,68328.0,0.001]
[1717338666760,0.136,68329.0,68328.0,0.001]
[1717338666968,0.136,68329.0,68328.0,0.15592233]
[1717338666969,0.065,68329.0,68328.0,0.15592233]
[1717338667169,0.029,68329.0,68328.0,0.15492233]
[1717338667882,0.1,68331.0,68328.0,0.15192233]
[1717338668098,0.01,68335.0,68329.0,0.15192233]
[1717338668296,0.14634,68334.0,68329.0,0.15192233]
[1717338668514,0.1,68333.0,68330.0,0.15192233]
[1717338668720,0.01,68336.0,68331.0,0.15192233]
[1717338668937,0.01,68336.0,68328.0,0.005]
[1717338668938,0.01,68335.0,68332.0,0.15189436]
[1717338669162,0.14633,68339.0,68333.0,0.15189436]
[1717338669163,0.01,68338.0,68333.0,0.15189436]
[1717338669381,0.17288895,68348.0,68328.0,0.02382065]
[1717338669382,0.01,68346.0,68334.0,0.29767227]
[1717338669592,0.2314,68358.0,68335.0,0.15189436]
[1717338669593,0.01,68345.0,68335.0,0.15189436]
[1717338669838,0.01,68346.0,68336.0,0.51307227]
[1717338670091,0.146316,68345.0,68337.0,0.15189436]
[1717338670312,0.26871,68348.0,68338.0,0.29767227]
[1717338670530,0.146312,68347.0,68339.0,0.15189436]
[1717338670769,0.004,68345.0,68341.0,0.1169]
[1717338670982,0.004,68345.0,68342.0,0.15189436]
[1717338671205,0.004,68345.0,68343.0,0.15189436]
[1717338671410,0.004,68345.0,68344.0,0.15189436]
[1717338671788,0.150316,68345.0,68344.0,0.15189436]
[1717338671966,0.160316,68345.0,68344.0,0.15189436]
[1717338672404,0.1,68354.0,68344.0,0.15189436]
[1717338672405,0.00017755,68374.0,68355.0,0.11]
[1717338672607,0.00017755,68374.0,68361.0,0.02178735]
[1717338672818,0.00017755,68374.0,68356.0,0.41480838]
[1717338672819,0.00017755,68374.0,68363.0,0.02178735]
[1717338673044,0.00017755,68374.0,68364.0,0.29767227]
[1717338673268,0.00017755,68374.0,68365.0,0.15189436]
[1717338673483,0.00017755,68374.0,68366.0,0.29767227]
[1717338673716,0.00017755,68374.0,68367.0,0.15189436]
[1717338673995,0.00017755,68374.0,68365.0,0.02178735]
[1717338673996,0.00017755,68374.0,68368.0,0.29767227]
[1717338674202,0.00017755,68374.0,68369.0,0.15189436]
[1717338674203,0.79728554,68370.0,68369.0,0.15189436]
[1717338674418,0.79728554,68370.0,68369.0,0.29767227]
[1717338674623,0.79528554,68370.0,68369.0,0.29767227]
[1717338675047,0.79728554,68370.0,68369.0,0.29767227]
[1717338675682,0.79428554,68370.0,68369.0,0.29767227]
[1717338675825,0.79728554,68370.0,68369.0,0.29767227]
[1717338676270,0.79528554,68370.0,68369.0,0.29767227]
[1717338676437,0.79528554,68370.0,68369.0,0.36667227]
[1717338676642,0.80028554,68370.0,68369.0,0.36667227]
[1717338679952,0.79228554,68370.0,68369.0,0.29767227]
[1717338680395,0.79228554,68370.0,68369.0,0.32667227]
[1717338680396,0.79428554,68370.0,68369.0,0.32667227]
[1717338680843,0.79728554,68370.0,68369.0,0.35467227]
[1717338682621,0.79228554,68370.0,68369.0,0.29767227]
[1717338683019,0.79228554,68370.0,68369.0,0.32267227]
[1717338683020,0.79428554,68370.0,68369.0,0.32267227]
[1717338690314,0.79428554,68370.0,68369.0,0.46893727]
[1717338690524,0.79428554,68370.0,68369.0,0.79083727]
[1717338691283,0.79228554,68370.0,68369.0,0.76583727]
[1717338691667,0.79428554,68370.0,68369.0,0.79083727]
[1717338692477,0.79428554,68370.0,68369.0,1.04030958]
[1717338692627,0.79628554,68370.0,68369.0,1.06530958]
[1717338692847,0.79428554,68370.0,68369.0,1.04030958]
[1717338693053,0.79228554,68370.0,68369.0,1.01530958]
[1717338693266,0.79628554,68370.0,68369.0,1.06530958]
[1717338693425,0.79628554,68370.0,68369.0,1.16652223]
[1717338694237,0.79428554,68370.0,68369.0,1.15152223]
[1717338694664,0.79628554,68370.0,68369.0,1.46905223]
[1717338694885,0.79628554,68370.0,68369.0,1.45905223]
[1717338695118,0.79628554,68370.0,68369.0,1.43605223]
[1717338695523,0.79428554,68370.0,68369.0,1.42105223]
[1717338695720,0.79628554,68370.0,68369.0,1.44605223]
[1717338696369,0.79628554,68370.0,68369.0,1.91608223]
[1717338696576,0.79628554,68370.0,68369.0,2.04535223]
[1717338697202,0.79428554,68370.0,68369.0,2.02035223]
[1717338697608,0.79628554,68370.0,68369.0,2.05735223]
[1717338698704,0.79628554,68370.0,68369.0,1.90541209]
[1717338698950,0.79628554,68370.0,68369.0,2.05717154]
[1717338699170,0.00889501,68384.0,68383.0,0.99]
[1717338699369,0.00889501,68384.0,68383.0,2.27323173]
[1717338699796,0.00889501,68384.0,68383.0,1.64783173]
[1717338700186,0.00889501,68384.0,68383.0,2.09959332]
[1717338700382,0.00889501,68384.0,68383.0,1.71082332]
[1717338700595,0.00889501,68384.0,68383.0,1.81082332]
[1717338700815,0.00889501,68384.0,68383.0,1.55782332]
[1717338700975,0.00889501,68384.0,68383.0,1.26056173]
[1717338701195,0.00889501,68384.0,68383.0,1.22356173]
[1717338701484,0.00889501,68384.0,68383.0,1.06536173]
[1717338701656,0.00889501,68384.0,68383.0,1.10236173]
[1717338702309,0.00989501,68384.0,68383.0,1.13936173]
[1717338702540,0.00989501,68384.0,68383.0,1.23936173]
[1717338702747,0.00989501,68384.0,68383.0,1.41686173]
[1717338702950,0.01089501,68384.0,68383.0,1.45386173]
[1717338703246,0.00889501,68384.0,68383.0,1.35686173]
[1717338703452,0.00889501,68384.0,68383.0,1.31986173]
[1717338703628,0.00989501,68384.0,68383.0,1.35686173]
[1717338703829,0.00989501,68384.0,68383.0,1.39486173]
[1717338704041,0.00889501,68384.0,68383.0,1.35786173]
[1717338704242,0.00889501,68384.0,68383.0,1.31986173]
[1717338704467,0.00889501,68384.0,68383.0,1.30518154]
[1717338704674,0.00889501,68384.0,68383.0,1.34318154]
[1717338705117,0.00889501,68384.0,68383.0,1.30518154]
[1717338705362,0.00889501,68384.0,68383.0,1.20518154]
[1717338705564,0.00989501,68384.0,68383.0,1.08768154]
[1717338706067,0.00889501,68384.0,68383.0,1.05068154]
[1717338706223,0.00889501,68384.0,68383.0,1.08768154]
[1717338706431,0.00989501,68384.0,68383.0,1.08768154]
[1717338706642,0.00989501,68384.0,68383.0,1.05068154]
[1717338706839,0.00989501,68384.0,68383.0,1.08768154]
[1717338707331,0.01089501,68384.0,68383.0,1.08768154]
[1717338707742,0.01089501,68384.0,68383.0,1.12568154]
[1717338709280,0.01089501,68384.0,68383.0,0.62944654]
[1717338709545,0.23829501,68384.0,68383.0,0.45439863]
[1717338709931,0.23829501,68384.0,68383.0,0.47615951]
[1717338710227,0.23829501,68384.0,68383.0,0.4381794]
[1717338710564,0.24729501,68384.0,68383.0,0.4621794]
[1717338710762,0.24629501,68384.0,68383.0,0.4251794]
[1717338710957,0.24729501,68384.0,68383.0,0.4311794]
[1717338711226,0.24729501,68384.0,68383.0,0.20352033]
[1717338711564,0.23729501,68384.0,68383.0,0.4411802]
[1717338711764,0.23729501,68384.0,68383.0,0.19175945]
[1717338712388,0.23729501,68384.0,68383.0,0.44118016]
[1717338712700,0.23729501,68384.0,68383.0,0.19175945]
[1717338712903,0.23829501,68384.0,68383.0,0.19875945]
[1717338713091,0.23729501,68384.0,68383.0,0.15175945]
[1717338713311,0.23729501,68384.0,68383.0,0.16275945]
[1717338713722,0.23629501,68384.0,68383.0,0.15175945]
[1717338713853,0.23629501,68384.0,68383.0,0.15975945]
[1717338714472,0.23629501,68384.0,68383.0,0.15175945]
[1717338714721,0.23629501,68384.0,68383.0,0.15975945]
[1717338715509,0.23629501,68384.0,68383.0,0.77943854]
[1717338715510,0.00889501,68384.0,68383.0,0.77943854]
[1717338715704,0.00989501,68384.0,68383.0,0.87430854]
[1717338715907,0.00989501,68384.0,68383.0,0.77430854]
[1717338716195,0.00989501,68384.0,68383.0,0.71370854]
[1717338716418,0.01089501,68384.0,68383.0,0.73470854]
[1717338716651,0.00889501,68384.0,68383.0,0.70870854]
[1717338717019,0.00889501,68384.0,68383.0,0.70070854]
[1717338717388,0.01089501,68384.0,68383.0,0.77170854]
[1717338717982,0.01089501,68384.0,68383.0,0.39228291]
[1717338718231,0.18326841,68387.0,68383.0,0.39228291]
[1717338718445,0.18326841,68387.0,68385.0,0.02927]
[1717338718665,0.18326841,68387.0,68386.0,0.55443866]
[1717338719372,0.18326841,68387.0,68386.0,0.70066666]
[1717338720210,0.18326841,68387.0,68386.0,0.58443866]
[1717338720211,0.18526841,68387.0,68386.0,0.58443866]
[1717338720421,0.18526841,68387.0,68386.0,0.60943866]
[1717338721696,0.18526841,68387.0,68386.0,0.60943576]
[1717338722316,0.18526841,68387.0,68386.0,0.75566376]
[1717338724432,0.18526841,68387.0,68386.0,0.72639376]
[1717338726825,0.18526841,68387.0,68386.0,0.58016576]
[1717338727387,0.18526841,68387.0,68386.0,0.60192147]
[1717338728629,0.18526841,68387.0,68386.0,0.35253305]
[1717338729468,0.18526841,68387.0,68386.0,0.20077791]
[1717338729671,0.18526841,68387.0,68386.0,0.35253586]
[1717338730710,0.18526841,68387.0,68386.0,0.49876386]
[1717338730917,0.18526841,68387.0,68386.0,0.76566906]
[1717338731091,0.18526841,68387.0,68386.0,1.31262606]
[1717338731309,0.18526841,68387.0,68386.0,1.32562606]
[1717338732325,0.18526841,68387.0,68386.0,1.33562606]
[1717338733182,0.18526841,68387.0,68386.0,1.32562606]
[1717338733728,0.18526841,68387.0,68386.0,0.75566906]
[1717338739207,0.18526841,68387.0,68386.0,0.76566906]
[1717338739767,0.18526841,68387.0,68386.0,1.15812606]
[1717338740796,0.18326841,68387.0,68386.0,1.12812606]
[1717338740992,0.18326841,68387.0,68386.0,1.17140916]
[1717338741229,0.18326841,68387.0,68386.0,0.90595216]
[1717338741230,0.18526841,68387.0,68386.0,0.90595216]
[1717338741546,0.18526841,68387.0,68386.0,0.86266906]
[1717338741683,0.18526841,68387.0,68386.0,0.84766906]
[1717338741881,0.18526841,68387.0,68386.0,0.83766906]
[1717338742081,0.18526841,68387.0,68386.0,0.88466906]
[1717338742495,0.18526841,68387.0,68386.0,0.84766906]
[1717338742899,0.18526841,68387.0,68386.0,0.88466906]
[1717338743129,0.18526841,68387.0,68386.0,0.87466906]
[1717338743327,0.18526841,68387.0,68386.0,0.77466906]
[1717338743779,0.18526841,68387.0,68386.0,0.87466906]
[1717338743992,0.18526841,68387.0,68386.0,0.77466906]
[1717338744697,0.18526841,68387.0,68386.0,0.59917106]
[1717338744698,0.19526841,68387.0,68386.0,0.59917106]
[1717338745140,0.19526841,68387.0,68386.0,0.37153586]
[1717338745475,0.19526841,68387.0,68386.0,0.33453586]
[1717338745710,0.18526841,68387.0,68386.0,0.33453586]
[1717338745914,0.18526841,68387.0,68386.0,0.36653586]
[1717338746119,0.18326841,68387.0,68386.0,0.32953586]
[1717338746319,0.18326841,68387.0,68386.0,0.29753586]
[1717338746517,0.18326841,68387.0,68386.0,0.33253586]
[1717338746758,0.18326841,68387.0,68386.0,0.29753586]
[1717338746959,0.18326841,68387.0,68386.0,0.15175795]
[1717338747160,0.18326841,68387.0,68386.0,0.17075795]
[1717338747971,0.18326841,68387.0,68386.0,0.16075795]
[1717338748910,0.18326841,68387.0,68386.0,0.15175795]
[1717338749359,0.18326841,68387.0,68386.0,0.15775795]
[1717338749609,0.18326841,68387.0,68386.0,0.16775795]
[1717338749856,0.18326841,68387.0,68386.0,0.16175795]
[1717338750067,0.18326841,68387.0,68386.0,0.17475795]
[1717338750534,0.18326841,68387.0,68386.0,0.16875795]
[1717338750899,0.18326841,68387.0,68386.0,0.15775795]
[1717338751951,0.18326841,68387.0,68386.0,0.16475795]
[1717338752159,0.18326841,68387.0,68386.0,0.15875795]
[1717338752588,0.18326841,68387.0,68386.0,0.16475795]
[1717338753443,0.18326841,68387.0,68386.0,0.45676386]
[1717338754097,0.18326841,68387.0,68386.0,0.68438516]
[1717338754570,0.18326841,68387.0,68386.0,0.71365516]
[1717338755446,0.18326841,68387.0,68386.0,0.70765516]
[1717338755732,0.18326841,68387.0,68386.0,0.74465516]
[1717338756205,0.18326841,68387.0,68386.0,0.70765516]
[1717338756401,0.18326841,68387.0,68386.0,0.70065516]
[1717338756629,0.18326841,68387.0,68386.0,0.73765516]
[1717338756858,0.18326841,68387.0,68386.0,0.77465516]
[1717338757115,0.18326841,68387.0,68386.0,0.73765516]
[1717338757354,0.18326841,68387.0,68386.0,0.70065516]
[1717338757603,0.18326841,68387.0,68386.0,0.73765516]
[1717338758241,0.18326841,68387.0,68386.0,0.70065516]
[1717338758453,0.18326841,68387.0,68386.0,0.73765516]
[1717338759223,0.18326841,68387.0,68386.0,0.77465516]
[1717338759981,0.18326841,68387.0,68386.0,0.73765516]
[1717338760124,0.18326841,68387.0,68386.0,0.81793826]
[1717338763106,0.18326841,68387.0,68386.0,0.77465516]
[1717338764148,0.18326841,68387.0,68386.0,0.81793826]
[1717338764311,0.18326841,68387.0,68386.0,0.82793826]
[1717338764519,0.18326841,68387.0,68386.0,1.74107043]
[1717338764729,0.18326841,68387.0,68386.0,1.67614578]
[1717338765127,0.18326841,68387.0,68386.0,1.67614209]
[1717338767444,0.18326841,68387.0,68386.0,2.12309909]
[1717338768509,0.18326841,68387.0,68386.0,2.20991654]
[1717338768743,0.18326841,68387.0,68386.0,2.30991654]
[1717338769219,0.18326841,68387.0,68386.0,2.20991654]
[1717338769707,0.18326841,68387.0,68386.0,2.17291654]
[1717338770073,0.18326841,68387.0,68386.0,2.20991654]
[1717338770311,0.18326841,68387.0,68386.0,2.17291654]
[1717338770510,0.18326841,68387.0,68386.0,2.36067654]
[1717338770751,0.18326841,68387.0,68386.0,2.47297654]
[1717338771326,0.18326841,68387.0,68386.0,2.38615909]
[1717338771526,0.18326841,68387.0,68386.0,2.38607392]
[1717338771724,0.18326841,68387.0,68386.0,2.42307392]
[1717338771927,0.18326841,68387.0,68386.0,2.76560604]
[1717338772336,0.18326841,68387.0,68386.0,2.42517453]
[1717338772536,0.18326841,68387.0,68386.0,2.42307392]
[1717338772736,0.18326841,68387.0,68386.0,2.72650919]
[1717338773165,0.18326841,68387.0,68386.0,2.68950919]
[1717338773335,0.11442821,68387.0,68386.0,3.38539625]
[1717338773558,0.11442821,68387.0,68386.0,3.40112052]
[1717338773759,0.11442821,68387.0,68386.0,3.48072304]
[1717338773958,0.11442821,68387.0,68386.0,3.55472304]
[1717338774166,0.11442821,68387.0,68386.0,3.28749686]
[1717338774324,0.11442821,68387.0,68386.0,3.34839625]
[1717338774597,0.11442821,68387.0,68386.0,3.42449686]
[1717338774824,0.11442821,68387.0,68386.0,3.51562243]
[1717338775279,0.11442821,68387.0,68386.0,3.42239625]
[1717338775500,0.11442821,68387.0,68386.0,3.38539625]
[1717338775718,0.11442821,68387.0,68386.0,3.55262243]
[1717338775925,0.11442821,68387.0,68386.0,3.42239625]
[1717338776365,0.11442821,68387.0,68386.0,3.38539625]
[1717338776593,0.11442821,68387.0,68386.0,3.28539625]
[1717338776803,0.11442821,68387.0,68386.0,3.32239625]
[1717338777035,0.11442821,68387.0,68386.0,3.42239625]
[1717338778466,0.11442821,68387.0,68386.0,3.32239625]
[1717338778915,0.08109821,68387.0,68386.0,3.46149686]
[1717338779197,0.06509821,68387.0,68386.0,3.46149686]
[1717338779611,0.06509821,68387.0,68386.0,3.36059686]
[1717338779810,0.06509821,68387.0,68386.0,3.42149625]
[1717338779926,0.06509821,68387.0,68386.0,3.47039625]
[1717338780130,0.06509821,68387.0,68386.0,3.37039625]
[1717338780367,0.0005,68400.0,68386.0,3.37039625]
[1717338780368,0.96173921,68395.0,68394.0,2.102587]
[1717338780759,0.96173921,68395.0,68394.0,3.64692386]
[1717338780760,0.88606161,68395.0,68394.0,3.64692386]
[1717338780956,0.88606161,68395.0,68394.0,3.53864177]
[1717338781129,0.88606161,68395.0,68394.0,3.68216477]
[1717338781347,0.88606161,68395.0,68394.0,3.9274432]
[1717338781548,0.88606161,68395.0,68394.0,3.65901758]
[1717338781839,0.88606161,68395.0,68394.0,3.5822202]
[1717338782016,0.88606161,68395.0,68394.0,3.69047751]
[1717338782217,0.88606161,68395.0,68394.0,3.82747751]
[1717338782421,0.86835242,68395.0,68394.0,4.25043173]
[1717338782598,0.86835242,68395.0,68394.0,4.29933173]
[1717338784188,0.86835242,68395.0,68394.0,4.19107442]
[1717338784620,0.86817643,68395.0,68394.0,4.19107442]
[1717338785800,0.86817643,68395.0,68394.0,4.17639423]
[1717338787055,0.84617401,68395.0,68394.0,4.17639423]
[1717338787270,0.79299814,68395.0,68394.0,4.46881723]
[1717338787476,0.69093387,68395.0,68394.0,4.46881723]
[1717338787687,0.22188251,68410.0,68394.0,4.46881723]
[1717338787688,0.22188251,68410.0,68409.0,1.38173]
[1717338787928,0.22188251,68410.0,68409.0,2.15540134]
[1717338788128,0.22188251,68410.0,68409.0,2.41727382]
[1717338788330,0.21688251,68410.0,68409.0,2.76639424]
[1717338788746,0.21688251,68410.0,68409.0,3.20861275]
[1717338788948,0.21688251,68410.0,68409.0,2.98550848]
[1717338789157,0.21688251,68410.0,68409.0,2.94229424]
[1717338790093,0.21688251,68410.0,68409.0,2.68693524]
[1717338790501,0.21688251,68410.0,68409.0,2.64471421]
[1717338790846,0.21688251,68410.0,68409.0,2.93707321]
[1717338791046,0.21688251,68410.0,68409.0,2.64471421]
[1717338791246,0.21688251,68410.0,68409.0,2.93707321]
[1717338791441,0.21688251,68410.0,68409.0,2.64471421]
[1717338792626,0.21688251,68410.0,68409.0,2.49561421]
[1717338792986,0.21688251,68410.0,68409.0,2.48093402]
[1717338793190,0.21688251,68410.0,68409.0,2.43203402]
[1717338793457,0.21688251,68410.0,68409.0,2.48093402]
[1717338793648,0.21688251,68410.0,68409.0,2.43203402]
[1717338793852,0.21688251,68410.0,68409.0,2.48093402]
[1717338794351,0.21688251,68410.0,68409.0,2.42203402]
[1717338794736,0.21688251,68410.0,68409.0,2.04284591]
[1717338794935,0.21688251,68410.0,68409.0,2.42202606]
[1717338796999,0.21688251,68410.0,68409.0,2.48092606]
[1717338797223,0.21688251,68410.0,68409.0,2.47092606]
[1717338797428,0.21688251,68410.0,68409.0,2.42202606]
[1717338798661,0.00017776,68425.0,68412.0,0.920049]
[1717338798834,0.00017776,68425.0,68412.0,1.58268725]
[1717338799080,0.00017776,68425.0,68412.0,1.92393325]
[1717338799684,0.00017776,68425.0,68412.0,2.227238]
[1717338799984,0.00017776,68425.0,68412.0,1.47268725]
[1717338800188,0.1320855,68416.0,68412.0,1.50968725]
[1717338800608,0.0137855,68416.0,68412.0,1.56858725]
[1717338801408,0.0137855,68416.0,68412.0,1.60558725]
[1717338801650,0.0137855,68416.0,68412.0,1.56858725]
[1717338801872,0.0137855,68416.0,68412.0,1.60558725]
[1717338802076,0.0137855,68416.0,68412.0,1.89793325]
[1717338802277,0.0137855,68416.0,68412.0,1.84903325]
[1717338802490,0.0137855,68416.0,68412.0,2.20127737]
[1717338802699,0.0137855,68416.0,68412.0,2.15237737]
[1717338803150,0.0137855,68416.0,68412.0,2.20127737]
[1717338803579,0.0137855,68416.0,68412.0,2.17419874]
[1717338803805,0.0137855,68416.0,68412.0,2.22309874]
[1717338804023,0.0137855,68416.0,68412.0,2.45186455]
[1717338804232,0.0137855,68416.0,68412.0,2.48990595]
[1717338804660,0.0137855,68416.0,68412.0,2.53212698]
[1717338804899,0.0137855,68416.0,68412.0,2.6301792]
[1717338805122,0.0137855,68416.0,68412.0,2.48990595]
[1717338805511,0.0137855,68416.0,68412.0,2.45290595]
[1717338805715,0.0137855,68416.0,68412.0,2.41590595]
[1717338805926,0.0137855,68416.0,68412.0,2.45290595]
[1717338806075,0.0137855,68416.0,68412.0,2.49608327]
[1717338806506,0.0137855,68416.0,68412.0,2.53308327]
[1717338806872,0.0137855,68416.0,68412.0,2.58990595]
[1717338807084,0.0137855,68416.0,68412.0,2.67887734]
[1717338807286,0.0137855,68416.0,68412.0,2.63570092]
[1717338808121,0.0137855,68416.0,68412.0,2.7004669]
[1717338808449,0.0137855,68416.0,68412.0,2.95964933]
[1717338809011,0.0137855,68416.0,68415.0,1.395662]
[1717338809157,0.0137855,68416.0,68415.0,2.79920828]
[1717338809340,0.0137855,68416.0,68415.0,2.90544721]
[1717338809543,0.0087855,68416.0,68415.0,3.14402446]
[1717338809791,0.0087855,68416.0,68415.0,3.43635746]
[1717338810194,0.0087855,68416.0,68415.0,3.5227121]
[1717338810599,0.0087855,68416.0,68415.0,3.43635746]
[1717338811260,0.0087855,68416.0,68415.0,3.36335746]
[1717338811467,0.79733535,68419.0,68418.0,2.28465]
[1717338811779,0.79733535,68419.0,68418.0,4.07313169]
[1717338811986,0.79733535,68419.0,68418.0,3.91268773]
[1717338812209,0.79733535,68419.0,68418.0,4.06951035]
[1717338812404,0.79733535,68419.0,68418.0,4.22995431]
[1717338812574,0.79733535,68419.0,68418.0,4.49937581]
[1717338812992,0.79733535,68419.0,68418.0,4.46237581]
[1717338812993,0.78033535,68419.0,68418.0,4.46237581]
[1717338813197,0.78033535,68419.0,68418.0,4.42537581]
[1717338813544,0.78033535,68419.0,68418.0,4.46237581]
[1717338814320,0.73929535,68419.0,68418.0,4.46237581]
[1717338814479,0.73929535,68419.0,68418.0,4.62890777]
[1717338814914,0.73929535,68419.0,68418.0,4.49933478]
[1717338815576,0.73929535,68419.0,68418.0,4.95278034]
[1717338815760,0.73929535,68419.0,68418.0,4.49933478]
[1717338815955,0.65409535,68419.0,68418.0,4.49933478]
[1717338816576,0.65409535,68419.0,68418.0,5.99933478]
[1717338816774,0.20750952,68419.0,68418.0,6.74510034]
[1717338817025,0.14434253,68419.0,68418.0,6.81172115]
[1717338817446,5.3e-07,68419.0,68418.0,6.81172115]
[1717338817736,0.2,68428.0,68427.0,1.55483]
[1717338817737,0.16307776,68428.0,68427.0,1.55483]
[1717338817952,0.16307776,68428.0,68427.0,3.08543271]
[1717338818087,0.16307776,68428.0,68427.0,3.38895962]
[1717338818318,9e-07,68428.0,68427.0,4.4397693]
[1717338818496,0.00916838,68453.0,68429.0,0.627666]
[1717338818733,0.00916838,68453.0,68430.0,1.232941]
[1717338818940,0.00916838,68453.0,68438.0,1.71232491]
[1717338819137,0.00916838,68453.0,68438.0,3.01949414]
[1717338819411,1.94280755,68444.0,68443.0,0.759802]
[1717338819540,1.94280755,68444.0,68443.0,1.65268339]
[1717338819541,1.92709744,68444.0,68443.0,1.65268339]
[1717338819753,1.92709744,68444.0,68443.0,1.52173706]
[1717338819969,2.04379744,68444.0,68443.0,1.16501425]
[1717338820581,2.04379744,68444.0,68443.0,0.4358341]
[1717338820790,2.28299744,68444.0,68443.0,0.81482566]
[1717338821587,2.28299744,68444.0,68443.0,1.21182566]
[1717338821879,1.92709744,68444.0,68443.0,1.21182566]
[1717338822097,1.92709744,68444.0,68443.0,1.24882566]
[1717338822303,1.92709744,68444.0,68443.0,1.23882566]
[1717338822729,1.92709744,68444.0,68443.0,1.26182566]
[1717338824467,1.92709744,68444.0,68443.0,0.91182566]
[1717338824680,1.92709744,68444.0,68443.0,0.89714547]
[1717338825040,2.28589744,68444.0,68443.0,0.77414547]
[1717338825443,2.28589744,68444.0,68443.0,0.74487547]
[1717338826881,2.29589744,68444.0,68443.0,0.09654738]
[1717338827100,2.41789744,68444.0,68443.0,0.09654738]
[1717338827736,0.3588,68437.0,68432.0,0.02348186]
[1717338827953,0.3688,68437.0,68432.0,0.03816205]
[1717338828138,0.2355,68437.0,68432.0,0.03816205]
[1717338828435,0.01,68438.0,68432.0,0.03816205]
[1717338828436,0.2355,68435.0,68432.0,0.03816205]
[1717338828633,0.2355,68433.0,68432.0,0.03816205]
[1717338828866,0.3588,68433.0,68432.0,0.03816205]
[1717338829273,0.3588,68433.0,68432.0,0.11316205]
[1717338829882,0.3688,68433.0,68432.0,0.07516205]
[1717338830329,0.3588,68433.0,68432.0,0.07516205]
[1717338830709,0.122,68438.0,68432.0,0.07516205]
[1717338830710,0.3588,68443.0,68442.0,0.146108]
[1717338830923,0.3588,68443.0,68442.0,0.29188591]
[1717338831116,0.3588,68443.0,68442.0,0.14577791]
[1717338831786,0.3588,68443.0,68442.0,0.29188691]
[1717338832137,0.3598,68443.0,68442.0,0.29188691]
[1717338832464,0.3598,68443.0,68442.0,0.44350486]
[1717338832674,0.26536753,68450.0,68443.0,0.786106]
[1717338832675,0.2355,68449.0,68443.0,0.786106]